Cogmind - Beta 17.1 @@@ ROGUE MODE // 2026.09.09 @ 20:15:58 Player: Ev Result: Destroyed by B1-4EC(R) with Subdweller Machine Gun Performance ------------- Evolutions (0) 0 Regions Visited (2) 400 Robots Destroyed (38) 190 Value Destroyed (772) 772 Prototype IDs (4) 80 Alien Tech Used (0) 0 Bonus (0) 0 TOTAL SCORE: 1442 Bonus ------- None Cogmind --------- Core Integrity 0/250 Matter 249/300 Energy 100/100 System Corruption 1% Temperature Cool (0) Movement Flying (920) Ox11 Location -10/Subcaves Parts ------- > --- POWER (1) -------- (None) > --- PROPULSION (2) --- Flight Unit > --- UTILITY (2) ------ High-capacity Storage Unit > --- WEAPON (2) ------- Subdweller Shrapnel Launcher > --- INVENTORY (20) --- Light Ion Engine Subdweller Power Source Subdweller Monowheel Subdweller Monowheel Medium Storage Unit High-capacity Battery (250) Large Matter Pod (150) Visual Processing Unit Subdweller Optics Signal Interpreter Propulsion Shielding Utility Shielding Weapon Shielding Makeshift System Restoration Module Peak State ------------ > --- POWER ------------ Light Ion Engine > --- PROPULSION ------- Light Treads Light Treads > --- UTILITY ---------- Small Storage Unit Improved Terrain Scanner > --- WEAPON ----------- Light Assault Rifle Light Assault Rifle > --- INVENTORY -------- Light Ion Engine Wheel Light Assault Rifle [Rating: 9] Favorites ----------- Power Ion Engine Engine Ion Engine Propulsion Flight Unit Treads Light Treads Wheel Wheel Flight Unit Flight Unit Utility High-capacity Storage Unit Device Improved Terrain Scanner Storage High-capacity Storage Unit Protection Propulsion Shielding Weapon Beam Cannon Energy Gun EM Pulse Gun Energy Cannon Beam Cannon Ballistic Gun Light Assault Rifle Launcher Grenade Launcher Special Weapon Flamer Build | -11 -10 -10 ------- Run | Yrd Mat Sub Slots Evolved . | . . . Power . | . . . Propulsion . | . . . Utility . | . . . Weapon . | . . . Parts Attached 25 | 7 10 8 Power 2 | 1 1 . Engine 2 | 1 1 . Core . | . . . Reactor . | . . . Propulsion 7 | 2 2 3 Treads 2 | 2 . . Leg . | . . . Wheel 2 | . 2 . Hover . | . . . Flight 3 | . . 3 Utility 6 | 2 3 1 Device 2 | 1 . 1 Storage 3 | 1 2 . Processor . | . . . Hackware . | . . . Protection 1 | . 1 . Artifact . | . . . Weapon 10 | 2 4 4 Energy Gun 2 | . 2 . Energy Cannon 1 | . 1 . Ballistic Gun 3 | 2 . 1 Ballistic Cannon . | . . . Launcher 2 | . 1 1 Special Weapon 2 | . . 2 Impact Weapon . | . . . Slashing Weapon . | . . . Piercing Weapon . | . . . Special Melee Weapon . | . . . Unidentified Prototypes . | . . . Parts Lost 13 | . 1 12 Power 1 | . . 1 Propulsion 4 | . . 4 Utility 1 | . . 1 Weapon 7 | . 1 6 Highest Loss Streak 4 | . 1 4 To Critical Strikes . | . . . Average Backups 12 | 2 8 16 Power 1 | . 1 1 Propulsion 2 | . 3 2 Utility 7 | . 3 9 Weapon 1 | . 1 1 Tool/Special . | . . . Unused Backups 19 | 1 2 16 Power 2 | . 1 1 Propulsion 3 | 1 . 2 Utility 13 | . . 13 Weapon 1 | . 1 . Tool/Special . | . . . Average Slot Usage (%) 75 | . 96 66 Engine 6 | . 14 3 Treads 6 | . 20 . Wheel 5 | . 7 5 Flight 15 | . . 21 Device 2 | . 5 1 Storage 14 | . 14 14 Protection 2 | . 8 . Energy Gun 4 | . 3 4 Energy Cannon 9 | . 2 11 Ballistic Gun 3 | . 7 2 Launcher 3 | . 11 . Special Weapon 1 | . . 1 Peak Build Rating 9 | 9 9 9 Average Rating 7 | 6 7 6 On Entrance 5 | . 9 8 Avg Prop Armor Cover (%) 12 | . 12 . Naked Turns . | . . . Heaviest Build 52 | 11 52 50 Greatest Support 40 | 40 40 20 Greatest Overweight (x) 16 | . 5 16 Average Overweight (x) 2 | . . 3 Largest Inventory Capacity 20 | 8 20 20 Average Capacity 17 | 7 15 20 Most Carried 20 | 4 18 20 Average Carried 12 | 2 8 16 Final Capacity 20 | 8 20 20 Final Carried 18 | 3 18 14 Class Distribution -------------------- 100% | Mutant Dominant Class ---------------- Mutant | -10/Materials Mutant | -10/Subcaves Resources | -11 -10 -10 ----------- Run | Yrd Mat Sub Matter Collected 981 | 306 403 272 Remotely . | . . . Salvage Created 904 | 196 333 375 Parts 75 | 17 28 30 Haulers Intercepted . | . . . Recyclers Shooed 3 | 1 2 . Parts Field Recycled . | . . . Retrieved Matter . | . . . Parts Self-Destructed 19 | . . 19 Prevented 2 | . . 2 Parts Restored . | . . . Kills | -11 -10 -10 ------- Run | Yrd Mat Sub Combat Hostiles Destroyed 23 | . 12 11 Guns 2 | . . 2 Cannons 10 | . 2 8 AOE 10 | . 10 . Classes Destroyed 11 | 3 6 2 Worker 4 | 2 2 . Builder 1 | . 1 . Tunneler 3 | 3 . . Recycler 2 | 1 1 . Mechanic 1 | . 1 . Operator 1 | . 1 . Watcher 3 | . 3 . Swarmer 10 | . 6 4 Grunt 8 | . 6 2 Sentry 1 | . . 1 Subdweller 4 | . . 4 Best Kill Streak 4 | 2 4 3 Combat Bots Only 3 | . 3 3 Max Kills in Single Turn 2 | 1 2 1 Gunslinging . | . . . Exploded 2 | . 2 . Melee . | . . . Uniques/NPCs Destroyed . | . . . Combat | -11 -10 -10 -------- Run | Yrd Mat Sub Hostile Shots Fired 114 | . 28 86 Missed 38 | . 6 32 Hits 76 | . 22 54 Projectile 76 | . 22 54 Critical Strikes 1 | . . 1 Damage Taken 1042 | . 275 767 Core 257 | . 42 215 Absorbed by Shields . | . . . Redirected to Shielding 3 | . 3 . Core Remaining (%) 100 | 100 . . Volleys Fired 124 | 23 42 59 Largest 2 | 2 2 2 Hottest 160 | 40 100 160 Shots Fired 196 | 46 49 101 Gun 99 | 46 8 45 Cannon 60 | . 14 46 Launcher 29 | . 27 2 Special 8 | . . 8 Kinetic 71 | 46 4 21 Thermal 68 | . 14 54 Explosive 27 | . 27 . Electromagnetic 30 | . 4 26 Robot Hit Streak 14 | 4 6 14 Robot Miss Streak 5 | 3 5 3 Penetration Max . | . . . Secondary Targets . | . . . Shots Hit Robots 91 | 27 16 48 Core Hits 56 | 11 26 19 Critical Kills . | . . . Critical Parts Destroyed . | . . . Critical Strikes 1 | . . 1 Corrupt 1 | . . 1 Melee Attacks . | . . . Impact . | . . . Slashing . | . . . Piercing . | . . . Sneak Attacks . | . . . Combat Hostiles . | . . . Follow-up Attacks . | . . . Damage Inflicted 2300 | 231 1265 804 Guns 560 | 231 38 291 Cannons 438 | . 123 315 Explosions 1247 | . 1104 143 Melee . | . . . Ramming . | . . . Kinetic 493 | 231 25 237 Thermal 493 | . 123 370 Explosive 1104 | . 1104 . Electromagnetic 210 | . 13 197 Impact . | . . . Slashing . | . . . Piercing . | . . . Highest Corruption 1 | . 1 1 Average Corruption 1 | . 1 1 Corruption Purged . | . . . Corruption Blocked . | . . . Effects 18 | . 4 14 Message Errors 5 | . . 5 Matter Fused 4 | . . 4 Heat Flow Errors 1 | . . 1 Energy Discharges 1 | . 1 . Parts Fused 1 | . . 1 Data Loss (minor) 3 | . . 3 Data Loss (major) 2 | . 2 . Misfires 1 | . 1 . Overload Shots . | . . . Overflow Damage 32 | . 23 9 Projectiles . | . . . Explosions 32 | . 23 9 Melee . | . . . Knockbacks . | . . . Impact . | . . . Kinetic . | . . . Secondary . | . . . Self-Inflicted Damage 116 | . 54 62 Shots 6 | . 4 2 Rammed . | . . . Targets Rammed . | . . . Kicked . | . . . Crushed . | . . . Highest Temperature 236 | . 184 236 Average Temperature 59 | . 56 70 Received Heat Transfer 276 | . 102 174 Siege Activations . | . . . Martial Activations . | . . . Shielding Activations . | . . . Robots Disrupted . | . . . Combat Hostiles . | . . . Robots Corrupted . | . . . Combat Hostiles . | . . . Parts Fried . | . . . Impact Corruptions . | . . . Robots Melted 1 | . . 1 Combat Hostiles 1 | . . 1 Parts Melted 4 | . . 4 Heat Transferred 1325 | . 259 1066 Parts Sabotaged . | . . . Parts Stolen . | . . . Parts Stripped . | . . . Power Chain Reactions . | . . . Alert | -11 -10 -10 ------- Run | Yrd Mat Sub Maximum Alert Level 1 | . 1 . Low Security (%) 62 | 100 50 . Level 1 37 | . 49 . Level 2 . | . . . Level 3 . | . . . Level 4 . | . . . Level 5 . | . . . High Security . | . . . Max Security . | . . . Peak Influence 255 | 10 255 . Initial . | . . . Average 115 | . 153 . Influence Increases 888 | 30 588 270 Destroy 0b10 Robot/C 380 | . 240 140 Destroy 0b10 Robot/NC 75 | 30 45 . Destroy Leader 66 | . 56 10 Successful Hack 19 | . 19 . Select Force Hacks 30 | . 30 . Disable Machine 75 | . 75 . Destroy Structure 123 | . 123 . Lose Combat Pursuer 120 | . . 120 Influence Decreases 888 | 30 373 485 Entered New Map 104 | . . 104 Time Decay 724 | 30 363 331 Lost Part 60 | . 10 50 Squads Dispatched 3 | . 3 . Investigation 3 | . 3 . Extermination . | . . . Reinforcement . | . . . Assault . | . . . Garrison . | . . . Intercept . | . . . Searches Triggered . | . . . Construction Impeded . | . . . Haulers Reinforced . | . . . Active Scanning Responses . | . . . Cargo Convoy Interrupts . | . . . Stealth | -11 -10 -10 --------- Run | Yrd Mat Sub Distress Signals . | . . . Communications Jammed . | . . . Distress Signals . | . . . Times Spotted 37 | . 15 22 Peak Tracking Total 6 | . 3 6 Tactical Retreats 2 | . . 2 Traps | -11 -10 -10 ------- Run | Yrd Mat Sub Traps Triggered 2 | . 2 . Indirectly . | . . . Trap Hack Attempts . | . . . Triggered . | . . . Disarmed . | . . . Reprogrammed . | . . . Reused . | . . . Traps Extracted . | . . . Installed . | . . . Triggered . | . . . Machines | -11 -10 -10 ---------- Run | Yrd Mat Sub Machines Disabled 5 | . 5 . Max in Single Turn 2 | . 2 . Machines Repaired . | . . . Machines Dismantled . | . . . Machines Sabotaged . | . . . Overloaded Fab Kills . | . . . Hacking | -11 -10 -10 --------- Run | Yrd Mat Sub Machines Accessed 8 | . 8 . Terminals 7 | . 7 . Fabricators . | . . . Repair Stations . | . . . Recycling Units 1 | . 1 . Scanalyzers . | . . . Garrison Access . | . . . Total Hacks 22 | . 22 . Successful 10 | . 10 . Failed 12 | . 12 . Catastrophic 5 | . 5 . Database Lockouts . | . . . Manual 18 | . 18 . Terminals 21 | . 21 . Fabricators . | . . . Repair Stations . | . . . Recycling Units 1 | . 1 . Scanalyzers . | . . . Garrison Access . | . . . Terminal Hacks 3 | . 3 . Prototype ID Bank 3 | . 3 . Fabricator Hacks . | . . . Repair Station Hacks . | . . . Recycling Unit Hacks . | . . . Scanalyzer . | . . . Garrison Access Hacks . | . . . Unauthorized Hacks 7 | . 7 . Terminals 6 | . 6 . Track 1 | . 1 . Botnet 4 | . 4 . Operators 1 | . 1 . Fabricators . | . . . Repair Stations . | . . . Recycling Units 1 | . 1 . Tunnel 1 | . 1 . Scanalyzers . | . . . Garrison Access . | . . . Data Cores Recovered 1 | . 1 . Used 1 | . 1 . Hacking Detections 7 | . 7 . Full Trace Events 1 | . 1 . Feedback Events . | . . . Feedback Blocked . | . . . Robot Schematics Acquired . | . . . Robots Built . | . . . Authchips . | . . . Time . | . . . Total Robot Build Rating . | . . . Part Schematics Acquired . | . . . Parts Built . | . . . Authchips . | . . . Time . | . . . Total Part Build Rating . | . . . Part Studies Acquired . | . . . Parts Repaired . | . . . Time . | . . . Parts Recycled . | . . . Recycled Matter . | . . . Retrieved Matter . | . . . Retrieved Components . | . . . Parts Scanalyzed . | . . . Part Schematics Acquired . | . . . Parts Damaged . | . . . Bothacking | -11 -10 -10 ------------ Run | Yrd Mat Sub Used RIF Installer . | . . . Robots Hacked . | . . . Non-combat . | . . . Combat . | . . . Robot Hacks Applied . | . . . Relay Couplers Released . | . . . Fabnet Peak Effective % . | . . . Robots Rewired . | . . . Allies Hacked . | . . . Hacks Repelled . | . . . Allies | -11 -10 -10 -------- Run | Yrd Mat Sub Total Allies . | . . . Largest Group . | . . . Highest-Rated Group . | . . . Highest-Rated Ally . | . . . Total Orders . | . . . Ally Attacks . | . . . Total Damage . | . . . Kills . | . . . Allies Corrupted . | . . . Allies Melted . | . . . Intel | -11 -10 -10 ------- Run | Yrd Mat Sub Active Infowar (turns) 623 | 109 360 154 Sensors 154 | . . 154 Terrain 469 | 109 360 . Robot Analysis Total . | . . . Derelict Logs Recovered 1 | . . 1 Drone Launches . | . . . Drone Recoveries . | . . . Exploration | -11 -10 -10 ------------- Run | Yrd Mat Sub Turns Passed 3328 | 312 935 2081 Spaces Moved 1249 | 86 523 640 Core 9 | 8 . 1 Treads 417 | 78 339 . Legs . | . . . Wheels 474 | . 184 290 Hover . | . . . Flight 349 | . . 349 Fastest Speed 50 | 50 110 110 Average Speed 220 | 149 143 292 Slowest Speed 850 | 160 160 850 Overloaded Moves . | . . . Propulsion Burnouts . | . . . Robots Hopped . | . . . Potential Cave-ins 2 | . 2 . Cave-ins Triggered . | . . . Exploration Rate (%) 47 | 5 96 42 Regions Visited 2 Branch Regions 1 Pre-discovered Areas 2 | . 1 1 Known Exits Taken . | . . . Unknown Exits Taken 2 | 1 1 . Scrap Searched 4 | . . 4 Spaces Dug . | . . . Terrain Destroyed 172 | . 135 37 Melee . | . . . Projectile . | . . . AOE 172 | . 135 37 Terrain Rammed . | . . . Walls Destroyed . | . . . Machines Disabled . | . . . Actions | -11 -10 -10 --------- Run | Yrd Mat Sub Total 1635 | 233 659 743 Wait 169 | 106 51 12 Move 1247 | 85 522 640 Hop . | . . . Pick Up 47 | 11 24 12 Fast Attach . | . . . Attach 20 | 7 4 9 Detach 1 | . . 1 Swap 10 | . 8 2 Drop 17 | 1 8 8 Fire 124 | 23 42 59 Melee . | . . . Ram . | . . . Kick . | . . . Crush . | . . . Escape Stasis . | . . . Rewire . | . . . Trap . | . . . Miscellaneous . | . . . Route ------- -11/Scrapyard -10/Materials (discovered 5 exits: [*Mat x3] / [*Min] / [*Sub]) -10/Subcaves History --------- Turn | Location | Event 10 | -11/Scrapyard | Discovered new exit (range 14) 313 | -11/Scrapyard | Entered Materials 314 | -10/Materials | Build established: Mutant 576 | -10/Materials | Discovered new exit (range 6) 743 | -10/Materials | Discovered new exit (range 13) 812 | -10/Materials | Discovered new exit (range 6) 827 | -10/Materials | Discovered new exit (range 16) 1065 | -10/Materials | Discovered new exit (range 15) 1248 | -10/Materials | Entered Subcaves 1249 | -10/Subcaves | Approached by a straggling Scientist 1340 | -10/Subcaves | Shifting Twisted Machinery released Flamer 1597 | -10/Subcaves | Learned location of Zion (-7) 1730 | -10/Subcaves | Lost 4 parts (1p1n2w) 2030 | -10/Subcaves | A swath of the cavern ceiling suddenly collapsed 2326 | -10/Subcaves | Shifting Twisted Machinery released Flamer 2331 | -10/Subcaves | Shifting Twisted Machinery released Sub. Shrapnel Launcher 2513 | -10/Subcaves | Core integrity fell below 50% 3322 | -10/Subcaves | Core integrity fell below 20% 3325 | -10/Subcaves | Ambushed by Subdweller buried in earth 3329 | -10/Subcaves | Destroyed by B1-4EC(R) with Subdweller Machine Gun Last Messages --------------- 02612_ Aluminum Leg fries itself beyond repair. 02614_ G-34 Mercenary destroyed. 02618_ Imp. Heat Sink fries itself beyond repair. 02618_ Particle Gun fries itself beyond repair. 02618_ Acquired 31 matter. 02619_ Sml. Laser fries itself beyond repair. 02619_ Ion Engine fries itself beyond repair. 02630_ Aluminum Leg fries itself beyond repair. 02631_ Heat Sink fries itself beyond repair. 02852_ GNILDO B|BBW6XJV:SO|3LN 03073_ RJXUK2VGPMLEQUQN F5|OQ5V1&P0TV 03089_ System corrupted: Component data lost. 03123_ UTVIBQX#OPKSDJW,LAX/&W#RF K<1U DKXJ&M4 03317_ Beam Cannon destroyed. 03323_ Sub. Machine Gun destroyed. 03325_ Flight Unit destroyed. 03325_ Destroyed Flight Unit. 03326_ B1-4EC(R): "ARGHSUB!" 03327_ Destroyed Sub. Optics. Map ----- +----------------------------------------------------+ | ????????????# ####????????????????????? | | ????????????# #????????????????????? | | ????????????## #????????????????????? | | ?????????????## % #????????????????????? | | ??????????????# ##???????????????????? | | ??????????????####### ##???##?????????????? | | ????????????????????## ## #?????????????? | | ?????????????????????# #?????????????? | | ????????????????????## ##????????????? | | ????????????????????# # #????????????? | | ????????????????????## ## ### ##????????????? | | ?????????????????????### #?? #?????????????? | | ???????????????????????## ##?? #?????????????? | | ???????????????????????## ### #?????????????? | | ???????????????????????# # #?????????????? | | ???????????????????????# #?????????????? | | ???????????????????????## ##?????????????? | | ????????????????????????# # # ##??????????????? | | ????????????????????????## # #???????????????? | | ?????????????????????????## ##? #???????????????? | | ????????????????????????## #? ??????????????? | | ????????????????????????# ##??# ?????????????? | | ????????????????????????# ##??? #????????????? | | ???????????????????????## #???? #????????????? | | ??????????????????????## #######??##????????????? | | ??????????????????????#; @ #????????????????? | | ??????????????????????## ; #???????????????? | | ???????????????????????# RR #???????????????? | | ???????????????????????# #???????????????? | | ???????????????????????# ;#???????????????? | | ???????????????????????## ;; ##???????????????? | | ????????????????????????## ;; #???????????????? | | ??????????????????????????## #??????????????? | | ???????????????????????????? #??????????????? | | ???????????????????????????? #??????????????? | | ????????????????????????????? ####??????????????? | | ????????????????????????????? #?????????????????? | | ????????????????????????????? ?????????????????? | | ?????????????????????????????? ?????????????????? | | ?????????????????????????????????????????????????? | | ?????????????????????????????????????????????????? | | ?????????????????????????????????????????????????? | | ?????????????????????????????????????????????????? | | ?????????????????????????????????????????????????? | | ?????????????????????????????????????????????????? | | ?????????????????????????????????????????????????? | | ?????????????????????????????????????????????????? | | ?????????????????????????????????????????????????? | | ?????????????????????????????????????????????????? | | ?????????????????????????????????????????????????? | +----------------------------------------------------+ Best States ------------- Heat Dissipation 25 Energy Generation 10 Energy Capacity 250 Matter Stores 300 Matter Capacity 300 Sight Range 16 Robot Scan Range 14 Terrain Scan Range 16 Terrain Scan Density 10 Propulsion Shielding 33 Evasion (%) 40 Recoil Reduction 2 Item Schematics ----------------- None Robot Schematics ------------------ None Fabricated ------------ Nothing Repaired ---------- Nothing Studied --------- None Alien Tech Used ----------------- None Achievements -------------- None Challenges ------------ None Game ------ Seed DisruptionZipNetwork Manual? 0 Play Time 00:23:36 Cumulative 91.5 hours Start 2026.09.09 @ 19:51:56 End 2026.09.09 @ 20:15:58 Sessions 1 Manual Loads 0 Difficulty Rogue Special Mode None Game No. 151 Rogue 151 Adventurer 0 Explorer 0 Win Type - Total 0 Types 0/0/0/0/0/0/0/0/0/0 Lore% 28 Gallery% 38 Achievement% 30 Wizard Run 0 Options --------- Layout 1 ASCII 0 Keyboard 0 Movement Mouse Keybinds 0 Fullscreen 1 Font 16/Cog Map View 50x40 Zoom Use 0% Tactical HUD 1 Map Filters NONE Filters NONE Steam 1 RUN: 93beab67-e59a-43c7-8ae4-6c791167754d